[Event "Titled Tuesday Blitz February 07 Early 2023"]
[White "Degenbaev, Aziz"]
[Black "Seo, Jung Min"]
[WhiteFideId "13802640"]
[BlackFideId "1734687"]
[WhiteElo "2203"]
[BlackElo "2494"]
[Result "0-1"]
[Round "04"]
[TimeControl "180+2"]
[Date "2023.02.07"]
[WhiteClock "0:00:06"]
[BlackClock "0:00:30"]

1. e4 {[%clk 0:03:00]}  c5 {[%clk 0:02:59]} 2. Nf3 {[%clk 0:02:59]}  Nc6 {[%clk 0:02:58]} 3. Bb5 {[%clk 0:02:59]}  e6 {[%clk 0:02:55]} 4. O-O {[%clk 0:02:56]}  Nge7 {[%clk 0:02:55]} 5. d4 {[%clk 0:02:57]}  cxd4 {[%clk 0:02:54]} 6. Nxd4 {[%clk 0:02:58]}  Qb6 {[%clk 0:02:54]} 7. Nxc6 {[%clk 0:02:00]}  bxc6 {[%clk 0:02:53]} 8. Bd3 {[%clk 0:01:57]}  Ng6 {[%clk 0:02:53]} 9. c4 {[%clk 0:01:56]}  Be7 {[%clk 0:02:52]} 10. Nc3 {[%clk 0:01:55]}  O-O {[%clk 0:02:52]} 11. Rb1 {[%clk 0:01:56]}  a5 {[%clk 0:02:51]} 12. Be3 {[%clk 0:01:54]}  Qc7 {[%clk 0:02:50]} 13. f4 {[%clk 0:01:51]}  d6 {[%clk 0:02:50]} 14. a3 {[%clk 0:01:42]}  Bd7 {[%clk 0:02:46]} 15. Qf3 {[%clk 0:01:20]}  Bf6 {[%clk 0:02:42]} 16. Ne2 {[%clk 0:01:14]}  Rfb8 {[%clk 0:02:41]} 17. Bd4 {[%clk 0:01:10]}  Bxd4+ {[%clk 0:02:40]} 18. Nxd4 {[%clk 0:01:10]}  Qa7 {[%clk 0:02:36]} 19. Qf2 {[%clk 0:01:09]}  Nxf4 {[%clk 0:02:33]} 20. Qxf4 {[%clk 0:01:03]}  Qxd4+ {[%clk 0:02:32]} 21. Kh1 {[%clk 0:01:04]}  Rf8 {[%clk 0:02:27]} 22. Rfd1 {[%clk 0:01:01]}  e5 {[%clk 0:02:26]} 23. Qf3 {[%clk 0:00:59]}  Rab8 {[%clk 0:01:49]} 24. b4 {[%clk 0:00:58]}  axb4 {[%clk 0:01:48]} 25. axb4 {[%clk 0:00:59]}  Qc3 {[%clk 0:01:34]} 26. Rdc1 {[%clk 0:00:58]}  Qd2 {[%clk 0:01:30]} 27. Rd1 {[%clk 0:00:53]}  Qh6 {[%clk 0:01:30]} 28. h3 {[%clk 0:00:46]}  Rfd8 {[%clk 0:01:24]} 29. b5 {[%clk 0:00:41]}  cxb5 {[%clk 0:01:23]} 30. cxb5 {[%clk 0:00:42]}  Rb6 {[%clk 0:01:21]} 31. Qf2 {[%clk 0:00:40]}  Rdb8 {[%clk 0:01:20]} 32. Bc4 {[%clk 0:00:40]}  Be6 {[%clk 0:01:18]} 33. Rdc1 {[%clk 0:00:40]}  Qf6 {[%clk 0:01:11]} 34. Qe3 {[%clk 0:00:29]}  h6 {[%clk 0:01:10]} 35. Qd3 {[%clk 0:00:25]}  Bxc4 {[%clk 0:01:01]} 36. Qxc4 {[%clk 0:00:26]}  Qe6 {[%clk 0:00:59]} 37. Qa4 {[%clk 0:00:26]}  d5 {[%clk 0:00:56]} 38. exd5 {[%clk 0:00:27]}  Qxd5 {[%clk 0:00:57]} 39. Rd1 {[%clk 0:00:28]}  Qb7 {[%clk 0:00:55]} 40. Qc4 {[%clk 0:00:17]}  Rxb5 {[%clk 0:00:48]} 41. Rxb5 {[%clk 0:00:17]}  Qxb5 {[%clk 0:00:48]} 42. Rd8+ {[%clk 0:00:17]}  Kh7 {[%clk 0:00:49]} 43. Qe4+ {[%clk 0:00:16]}  g6 {[%clk 0:00:48]} 44. Rd5 {[%clk 0:00:16]}  Qf1+ {[%clk 0:00:48]} 45. Kh2 {[%clk 0:00:16]}  Qf4+ {[%clk 0:00:44]} 46. Qxf4 {[%clk 0:00:16]}  exf4 {[%clk 0:00:44]} 47. h4 {[%clk 0:00:17]}  Rb2 {[%clk 0:00:40]} 48. Kh3 {[%clk 0:00:15]}  Rb3+ {[%clk 0:00:39]} 49. Kh2 {[%clk 0:00:15]}  Kg7 {[%clk 0:00:37]} 50. h5 {[%clk 0:00:13]}  g5 {[%clk 0:00:36]} 51. Rf5 {[%clk 0:00:13]}  Rg3 {[%clk 0:00:34]} 52. Kg1 {[%clk 0:00:09]}  f3 {[%clk 0:00:31]} 53. Rxf3 {[%clk 0:00:07]}  Rxf3 {[%clk 0:00:29]} 54. gxf3 {[%clk 0:00:08]}  Kf6 {[%clk 0:00:30]} 55. Kf2 {[%clk 0:00:06]}  Ke5 {[%clk 0:00:30]} 56. Ke2 {[%clk 0:00:05]}  Kf4 {[%clk 0:00:30]} 57. Kf2 {[%clk 0:00:06]}  f6 {[%clk 0:00:30]} 0-1


[Site "https://www.chess.com"]

[Event "Titled Tuesday Blitz February 07 Early 2023"]
[White "Chernobay, Artem"]
[Black "Manukian, Artak"]
[WhiteFideId "4167406"]
[BlackFideId "13301373"]
[WhiteElo "2484"]
[BlackElo "2196"]
[Result "1/2-1/2"]
[Round "04"]
[TimeControl "180+2"]
[Date "2023.02.07"]
[WhiteClock "0:00:13"]
[BlackClock "0:01:03"]

1. e4 {[%clk 0:03:00]}  c6 {[%clk 0:02:59]} 2. d4 {[%clk 0:02:57]}  d5 {[%clk 0:03:00]} 3. e5 {[%clk 0:02:57]}  Bf5 {[%clk 0:03:00]} 4. Nc3 {[%clk 0:02:57]}  e6 {[%clk 0:02:59]} 5. g4 {[%clk 0:02:57]}  Bg6 {[%clk 0:02:59]} 6. Nge2 {[%clk 0:02:58]}  c5 {[%clk 0:02:59]} 7. h4 {[%clk 0:02:55]}  h5 {[%clk 0:02:58]} 8. Nf4 {[%clk 0:02:54]}  cxd4 {[%clk 0:02:58]} 9. Nb5 {[%clk 0:02:52]}  Nc6 {[%clk 0:02:53]} 10. Nxg6 {[%clk 0:02:15]}  fxg6 {[%clk 0:02:49]} 11. Bd3 {[%clk 0:02:08]}  Kd7 {[%clk 0:02:39]} 12. Qe2 {[%clk 0:01:23]}  hxg4 {[%clk 0:02:19]} 13. Bd2 {[%clk 0:01:14]}  Nh6 {[%clk 0:02:07]} 14. Bxg6 {[%clk 0:01:04]}  a6 {[%clk 0:01:56]} 15. Nd6 {[%clk 0:01:00]}  Bxd6 {[%clk 0:01:54]} 16. exd6 {[%clk 0:01:00]}  Kxd6 {[%clk 0:01:55]} 17. O-O-O {[%clk 0:00:56]}  e5 {[%clk 0:01:52]} 18. Kb1 {[%clk 0:00:44]}  Qf6 {[%clk 0:01:47]} 19. h5 {[%clk 0:00:38]}  Rhf8 {[%clk 0:01:40]} 20. Bxh6 {[%clk 0:00:18]}  gxh6 {[%clk 0:01:37]} 21. Qxg4 {[%clk 0:00:19]}  e4 {[%clk 0:01:23]} 22. Qh3 {[%clk 0:00:14]}  Qf3 {[%clk 0:01:17]} 23. Qh2+ {[%clk 0:00:12]}  Qf4 {[%clk 0:01:17]} 24. Qh3 {[%clk 0:00:13]}  Qf3 {[%clk 0:01:15]} 25. Qh2+ {[%clk 0:00:13]}  Qf4 {[%clk 0:01:09]} 26. Qh3 {[%clk 0:00:13]}  Qf3 {[%clk 0:01:03]} 1/2-1/2


[Site "https://www.chess.com"]

[Event "Titled Tuesday Blitz February 07 Early 2023"]
[White "Nigmatov, Ortik"]
[Black "Valle Maytin, Luis Enrique"]
[WhiteFideId "14202131"]
[BlackFideId "3503666"]
[WhiteElo "2438"]
[BlackElo "2241"]
[Result "1-0"]
[Round "04"]
[TimeControl "180+2"]
[Date "2023.02.07"]
[WhiteClock "0:00:45"]
[BlackClock "0:00:11"]

1. e4 {[%clk 0:03:00]}  c6 {[%clk 0:02:59]} 2. d4 {[%clk 0:02:59]}  d5 {[%clk 0:03:00]} 3. Nc3 {[%clk 0:02:59]}  dxe4 {[%clk 0:03:00]} 4. Nxe4 {[%clk 0:02:59]}  Nf6 {[%clk 0:03:01]} 5. Nxf6+ {[%clk 0:02:59]}  exf6 {[%clk 0:03:02]} 6. c3 {[%clk 0:02:55]}  Bd6 {[%clk 0:03:02]} 7. Bd3 {[%clk 0:02:54]}  O-O {[%clk 0:03:03]} 8. Ne2 {[%clk 0:02:54]}  Re8 {[%clk 0:03:03]} 9. Qc2 {[%clk 0:02:54]}  h5 {[%clk 0:03:04]} 10. Be3 {[%clk 0:02:54]}  Nd7 {[%clk 0:03:04]} 11. O-O-O {[%clk 0:02:53]}  Nf8 {[%clk 0:03:00]} 12. h3 {[%clk 0:02:47]}  Be6 {[%clk 0:02:52]} 13. Kb1 {[%clk 0:02:43]}  b5 {[%clk 0:02:50]} 14. g4 {[%clk 0:02:42]}  h4 {[%clk 0:02:48]} 15. Rhg1 {[%clk 0:02:38]}  a5 {[%clk 0:02:33]} 16. g5 {[%clk 0:02:38]}  f5 {[%clk 0:02:22]} 17. Bxf5 {[%clk 0:02:34]}  Bxf5 {[%clk 0:02:21]} 18. Qxf5 {[%clk 0:02:34]}  b4 {[%clk 0:02:18]} 19. c4 {[%clk 0:02:33]}  a4 {[%clk 0:02:13]} 20. Rg4 {[%clk 0:02:30]}  Ng6 {[%clk 0:02:13]} 21. Qd3 {[%clk 0:02:27]}  Qe7 {[%clk 0:02:09]} 22. Nc1 {[%clk 0:02:16]}  a3 {[%clk 0:02:01]} 23. b3 {[%clk 0:02:00]}  c5 {[%clk 0:01:57]} 24. Qc2 {[%clk 0:01:58]}  cxd4 {[%clk 0:01:55]} 25. Rgxd4 {[%clk 0:01:57]}  Be5 {[%clk 0:01:41]} 26. Rd7 {[%clk 0:01:54]}  Qe6 {[%clk 0:01:41]} 27. R7d5 {[%clk 0:01:46]}  Bc3 {[%clk 0:01:39]} 28. Ne2 {[%clk 0:01:44]}  Qxh3 {[%clk 0:01:29]} 29. Nxc3 {[%clk 0:01:41]}  bxc3 {[%clk 0:01:30]} 30. Qxc3 {[%clk 0:01:41]}  Nf4 {[%clk 0:01:25]} 31. Rd7 {[%clk 0:01:32]}  Ne2 {[%clk 0:01:22]} 32. Qd3 {[%clk 0:01:18]}  Qf3 {[%clk 0:01:17]} 33. g6 {[%clk 0:01:15]}  f6 {[%clk 0:00:30]} 34. Rxg7+ {[%clk 0:01:14]}  Kh8 {[%clk 0:00:24]} 35. Rh7+ {[%clk 0:01:10]}  Kg8 {[%clk 0:00:24]} 36. Kc2 {[%clk 0:00:58]}  Nf4 {[%clk 0:00:12]} 37. Bxf4 {[%clk 0:00:45]}  Qxf2+ {[%clk 0:00:12]} 38. Rd2 {[%clk 0:00:45]}  Qxf4 {[%clk 0:00:12]} 39. Qd5+ {[%clk 0:00:45]}  Kf8 {[%clk 0:00:11]} 40. Qf7# {[%clk 0:00:45]} 1-0


[Site "https://www.chess.com"]

[Event "Titled Tuesday Blitz February 07 Early 2023"]
[White "Pacan-Milej, Kosma"]
[Black "Devaev, Alexander"]
[WhiteFideId "21800537"]
[BlackFideId "4169395"]
[WhiteElo "2402"]
[BlackElo "2325"]
[Result "0-1"]
[Round "04"]
[TimeControl "180+2"]
[Date "2023.02.07"]
[WhiteClock "0:00:08"]
[BlackClock "0:00:20"]

1. d4 {[%clk 0:02:16]}  Nf6 {[%clk 0:02:58]} 2. c4 {[%clk 0:02:16]}  e6 {[%clk 0:02:57]} 3. Nc3 {[%clk 0:02:17]}  Bb4 {[%clk 0:02:57]} 4. e3 {[%clk 0:02:17]}  c5 {[%clk 0:02:58]} 5. Ne2 {[%clk 0:02:14]}  cxd4 {[%clk 0:02:58]} 6. exd4 {[%clk 0:02:15]}  d5 {[%clk 0:02:59]} 7. a3 {[%clk 0:02:15]}  Bxc3+ {[%clk 0:02:58]} 8. Nxc3 {[%clk 0:02:16]}  Nc6 {[%clk 0:02:59]} 9. c5 {[%clk 0:02:11]}  Ne4 {[%clk 0:02:59]} 10. Be2 {[%clk 0:02:02]}  Nxc3 {[%clk 0:02:58]} 11. bxc3 {[%clk 0:02:03]}  b6 {[%clk 0:02:58]} 12. cxb6 {[%clk 0:02:01]}  Qxb6 {[%clk 0:02:59]} 13. O-O {[%clk 0:02:01]}  Ba6 {[%clk 0:02:59]} 14. Bxa6 {[%clk 0:01:54]}  Qxa6 {[%clk 0:02:58]} 15. Qg4 {[%clk 0:01:55]}  Kf8 {[%clk 0:02:29]} 16. Bf4 {[%clk 0:01:52]}  Ne7 {[%clk 0:02:27]} 17. Rfe1 {[%clk 0:01:46]}  Rc8 {[%clk 0:02:18]} 18. Rab1 {[%clk 0:01:40]}  Ng6 {[%clk 0:02:16]} 19. Qg3 {[%clk 0:01:34]}  h6 {[%clk 0:01:42]} 20. Bd6+ {[%clk 0:01:33]}  Kg8 {[%clk 0:01:42]} 21. h4 {[%clk 0:01:32]}  Nxh4 {[%clk 0:01:33]} 22. Qxh4 {[%clk 0:01:13]}  Qxd6 {[%clk 0:01:33]} 23. Rb7 {[%clk 0:01:13]}  Rxc3 {[%clk 0:01:24]} 24. Reb1 {[%clk 0:00:38]}  Rc7 {[%clk 0:00:55]} 25. R7b3 {[%clk 0:00:06]}  Qe7 {[%clk 0:00:40]} 26. Qf4 {[%clk 0:00:05]}  Kh7 {[%clk 0:00:37]} 27. Rg3 {[%clk 0:00:06]}  Rhc8 {[%clk 0:00:29]} 28. Kh2 {[%clk 0:00:05]}  Qf6 {[%clk 0:00:27]} 29. Qxf6 {[%clk 0:00:04]}  gxf6 {[%clk 0:00:27]} 30. Rbb3 {[%clk 0:00:04]}  f5 {[%clk 0:00:27]} 31. Rb5 {[%clk 0:00:04]}  Rg8 {[%clk 0:00:27]} 32. Rgb3 {[%clk 0:00:03]}  Rg4 {[%clk 0:00:27]} 33. Rb7 {[%clk 0:00:03]}  Rxb7 {[%clk 0:00:24]} 34. Rxb7 {[%clk 0:00:04]}  Kg7 {[%clk 0:00:24]} 35. Rxa7 {[%clk 0:00:03]}  Rxd4 {[%clk 0:00:25]} 36. a4 {[%clk 0:00:04]}  Rd2 {[%clk 0:00:25]} 37. a5 {[%clk 0:00:05]}  Rxf2 {[%clk 0:00:25]} 38. a6 {[%clk 0:00:06]}  Ra2 {[%clk 0:00:25]} 39. Ra8 {[%clk 0:00:06]}  d4 {[%clk 0:00:24]} 40. Kg3 {[%clk 0:00:07]}  d3 {[%clk 0:00:22]} 41. Kf3 {[%clk 0:00:07]}  d2 {[%clk 0:00:22]} 42. Ke2 {[%clk 0:00:07]}  d1=Q+ {[%clk 0:00:18]} 43. Kxd1 {[%clk 0:00:08]}  Rxg2 {[%clk 0:00:18]} 44. Kc1 {[%clk 0:00:08]}  Ra2 {[%clk 0:00:19]} 45. Kb1 {[%clk 0:00:08]}  Ra5 {[%clk 0:00:19]} 46. Kb2 {[%clk 0:00:08]}  f4 {[%clk 0:00:20]} 0-1


[Site "https://www.chess.com"]

[Event "Titled Tuesday Blitz February 07 Early 2023"]
[White "Skvortsov, Andrei"]
[Black "Abdilkhair, Abilmansur"]
[WhiteFideId "24108600"]
[BlackFideId "13716417"]
[WhiteElo "2313"]
[BlackElo "2268"]
[Result "1/2-1/2"]
[Round "04"]
[TimeControl "180+2"]
[Date "2023.02.07"]
[WhiteClock "0:00:52"]
[BlackClock "0:00:05"]

1. e4 {[%clk 0:03:00]}  e5 {[%clk 0:02:58]} 2. Nf3 {[%clk 0:03:00]}  Nc6 {[%clk 0:02:58]} 3. Bc4 {[%clk 0:03:01]}  Be7 {[%clk 0:02:58]} 4. O-O {[%clk 0:03:00]}  Nf6 {[%clk 0:02:58]} 5. d4 {[%clk 0:02:46]}  d6 {[%clk 0:02:54]} 6. dxe5 {[%clk 0:02:41]}  dxe5 {[%clk 0:02:51]} 7. Qe2 {[%clk 0:02:40]}  Bg4 {[%clk 0:02:47]} 8. c3 {[%clk 0:02:38]}  O-O {[%clk 0:02:44]} 9. Rd1 {[%clk 0:02:37]}  Qc8 {[%clk 0:02:44]} 10. h3 {[%clk 0:02:38]}  Bh5 {[%clk 0:02:43]} 11. Bg5 {[%clk 0:02:37]}  h6 {[%clk 0:02:32]} 12. Bh4 {[%clk 0:02:36]}  Kh8 {[%clk 0:02:10]} 13. Nbd2 {[%clk 0:02:24]}  Nh7 {[%clk 0:02:09]} 14. Bxe7 {[%clk 0:02:23]}  Nxe7 {[%clk 0:02:09]} 15. g4 {[%clk 0:02:23]}  Bxg4 {[%clk 0:02:07]} 16. hxg4 {[%clk 0:02:23]}  Qxg4+ {[%clk 0:02:08]} 17. Kh1 {[%clk 0:02:19]}  Qh5+ {[%clk 0:01:53]} 18. Nh2 {[%clk 0:02:15]}  Qh4 {[%clk 0:01:35]} 19. Nf3 {[%clk 0:02:13]}  Qf6 {[%clk 0:01:32]} 20. Rg1 {[%clk 0:02:10]}  Ng6 {[%clk 0:01:32]} 21. Qe3 {[%clk 0:02:03]}  Nf4 {[%clk 0:01:32]} 22. Rg3 {[%clk 0:02:02]}  Qc6 {[%clk 0:00:54]} 23. Bd5 {[%clk 0:01:59]}  Nxd5 {[%clk 0:00:53]} 24. exd5 {[%clk 0:02:00]}  Qxd5 {[%clk 0:00:53]} 25. Qxe5 {[%clk 0:02:00]}  Qxe5 {[%clk 0:00:51]} 26. Nxe5 {[%clk 0:02:01]}  Rae8 {[%clk 0:00:48]} 27. Re3 {[%clk 0:02:00]}  Ng5 {[%clk 0:00:28]} 28. Rae1 {[%clk 0:01:52]}  Kh7 {[%clk 0:00:23]} 29. Nxf7 {[%clk 0:01:45]}  Rxe3 {[%clk 0:00:17]} 30. Nxg5+ {[%clk 0:01:45]}  hxg5 {[%clk 0:00:18]} 31. fxe3 {[%clk 0:01:41]}  Rf2 {[%clk 0:00:19]} 32. Rb1 {[%clk 0:01:42]}  Re2 {[%clk 0:00:12]} 33. Nf1 {[%clk 0:01:42]}  Kg6 {[%clk 0:00:11]} 34. a4 {[%clk 0:01:40]}  a5 {[%clk 0:00:09]} 35. b4 {[%clk 0:01:39]}  axb4 {[%clk 0:00:07]} 36. cxb4 {[%clk 0:01:40]}  b6 {[%clk 0:00:08]} 37. a5 {[%clk 0:01:39]}  Ra2 {[%clk 0:00:07]} 38. axb6 {[%clk 0:01:38]}  cxb6 {[%clk 0:00:08]} 39. Ng3 {[%clk 0:01:36]}  g4 {[%clk 0:00:07]} 40. Rd1 {[%clk 0:01:33]}  Kg5 {[%clk 0:00:05]} 41. Kg1 {[%clk 0:01:29]}  Kh4 {[%clk 0:00:05]} 42. Nf1 {[%clk 0:01:29]}  Rb2 {[%clk 0:00:05]} 43. Rd4 {[%clk 0:01:25]}  Kh3 {[%clk 0:00:05]} 44. Rd7 {[%clk 0:01:23]}  Rg2+ {[%clk 0:00:03]} 45. Kh1 {[%clk 0:01:22]}  Rf2 {[%clk 0:00:04]} 46. Rd1 {[%clk 0:01:19]}  g3 {[%clk 0:00:03]} 47. Kg1 {[%clk 0:01:19]}  Rg2+ {[%clk 0:00:04]} 48. Kh1 {[%clk 0:01:19]}  Rf2 {[%clk 0:00:05]} 49. Kg1 {[%clk 0:00:52]}  Rg2+ {[%clk 0:00:04]} 50. Kh1 {[%clk 0:00:52]}  Rf2 {[%clk 0:00:05]} 1/2-1/2


[Site "https://www.chess.com"]

[Event "Titled Tuesday Blitz February 07 Early 2023"]
[White "Vlassov, Nikolai"]
[Black "Avazkhonov, Alikhon"]
[WhiteFideId "4103360"]
[BlackFideId "14208504"]
[WhiteElo "2283"]
[BlackElo "1538"]
[Result "1-0"]
[Round "04"]
[TimeControl "180+2"]
[Date "2023.02.07"]
[WhiteClock "0:00:42"]
[BlackClock "0:00:06"]

1. e4 {[%clk 0:03:00]}  c5 {[%clk 0:02:55]} 2. c3 {[%clk 0:03:00]}  d5 {[%clk 0:02:55]} 3. exd5 {[%clk 0:03:00]}  Qxd5 {[%clk 0:02:56]} 4. d4 {[%clk 0:03:00]}  Nf6 {[%clk 0:02:56]} 5. Nf3 {[%clk 0:03:00]}  Bg4 {[%clk 0:02:57]} 6. dxc5 {[%clk 0:03:00]}  Qxc5 {[%clk 0:02:56]} 7. h3 {[%clk 0:03:00]}  Bd7 {[%clk 0:02:44]} 8. Be3 {[%clk 0:02:59]}  Qa5 {[%clk 0:02:40]} 9. Na3 {[%clk 0:02:57]}  e6 {[%clk 0:02:35]} 10. Nc4 {[%clk 0:02:56]}  Qc7 {[%clk 0:02:35]} 11. Nce5 {[%clk 0:02:53]}  Bd6 {[%clk 0:02:35]} 12. Bd4 {[%clk 0:02:48]}  O-O {[%clk 0:02:33]} 13. Bd3 {[%clk 0:02:47]}  h6 {[%clk 0:02:13]} 14. Qe2 {[%clk 0:02:44]}  Nc6 {[%clk 0:02:12]} 15. Nxc6 {[%clk 0:02:39]}  Bxc6 {[%clk 0:02:08]} 16. Bxf6 {[%clk 0:02:38]}  gxf6 {[%clk 0:02:08]} 17. Nd4 {[%clk 0:02:36]}  f5 {[%clk 0:02:01]} 18. O-O-O {[%clk 0:02:13]}  Bf4+ {[%clk 0:01:57]} 19. Kb1 {[%clk 0:02:13]}  Qe5 {[%clk 0:01:57]} 20. Nxc6 {[%clk 0:02:07]}  bxc6 {[%clk 0:01:58]} 21. Qf3 {[%clk 0:02:02]}  Rab8 {[%clk 0:01:41]} 22. Ka1 {[%clk 0:01:56]}  Bg5 {[%clk 0:01:28]} 23. Rhe1 {[%clk 0:01:44]}  Qc5 {[%clk 0:01:22]} 24. g4 {[%clk 0:01:35]}  Bf6 {[%clk 0:00:22]} 25. Bb1 {[%clk 0:01:21]}  Qb5 {[%clk 0:00:09]} 26. Re2 {[%clk 0:01:16]}  f4 {[%clk 0:00:07]} 27. Qe4 {[%clk 0:01:11]}  Rfd8 {[%clk 0:00:08]} 28. Red2 {[%clk 0:01:01]}  Rxd2 {[%clk 0:00:05]} 29. Rxd2 {[%clk 0:00:59]}  Bxc3 {[%clk 0:00:06]} 30. bxc3 {[%clk 0:00:49]}  Qc5 {[%clk 0:00:06]} 31. Qh7+ {[%clk 0:00:42]} 1-0


[Site "https://www.chess.com"]

[Event "Titled Tuesday Blitz February 07 Early 2023"]
[White "Manukyan, Sargis A."]
[Black "Lucassen, Mickey"]
[WhiteFideId "13303970"]
[BlackFideId "12919110"]
[WhiteElo "2158"]
[BlackElo "2023"]
[Result "1-0"]
[Round "04"]
[TimeControl "180+2"]
[Date "2023.02.07"]
[WhiteClock "0:00:42"]
[BlackClock "0:00:15"]

1. d4 {[%clk 0:03:00]}  Nf6 {[%clk 0:02:59]} 2. c4 {[%clk 0:03:00]}  e6 {[%clk 0:02:57]} 3. Nc3 {[%clk 0:03:00]}  Bb4 {[%clk 0:02:56]} 4. a3 {[%clk 0:03:00]}  Bxc3+ {[%clk 0:02:56]} 5. bxc3 {[%clk 0:03:00]}  O-O {[%clk 0:02:56]} 6. e3 {[%clk 0:03:00]}  d5 {[%clk 0:02:56]} 7. cxd5 {[%clk 0:02:59]}  exd5 {[%clk 0:02:56]} 8. Bd3 {[%clk 0:03:00]}  b6 {[%clk 0:02:52]} 9. Ne2 {[%clk 0:03:00]}  Bb7 {[%clk 0:02:50]} 10. O-O {[%clk 0:03:00]}  Nbd7 {[%clk 0:02:51]} 11. f3 {[%clk 0:03:00]}  Re8 {[%clk 0:02:51]} 12. Ra2 {[%clk 0:02:58]}  c5 {[%clk 0:02:50]} 13. g4 {[%clk 0:02:58]}  Re7 {[%clk 0:02:33]} 14. Ng3 {[%clk 0:02:58]}  g6 {[%clk 0:02:32]} 15. Rg2 {[%clk 0:02:57]}  Qc7 {[%clk 0:02:26]} 16. g5 {[%clk 0:02:50]}  Ne8 {[%clk 0:02:25]} 17. h4 {[%clk 0:02:49]}  Nd6 {[%clk 0:02:17]} 18. h5 {[%clk 0:02:47]}  cxd4 {[%clk 0:02:15]} 19. cxd4 {[%clk 0:02:47]}  Nf8 {[%clk 0:01:55]} 20. f4 {[%clk 0:02:33]}  Nc4 {[%clk 0:01:51]} 21. Qf3 {[%clk 0:02:14]}  Rae8 {[%clk 0:01:49]} 22. hxg6 {[%clk 0:01:43]}  hxg6 {[%clk 0:01:00]} 23. Re1 {[%clk 0:01:35]}  Ne6 {[%clk 0:00:53]} 24. Rh2 {[%clk 0:01:24]}  Nxd4 {[%clk 0:00:47]} 25. Qh1 {[%clk 0:01:24]}  f5 {[%clk 0:00:23]} 26. gxf6 {[%clk 0:00:56]}  Rxe3 {[%clk 0:00:15]} 27. Rh8+ {[%clk 0:00:54]}  Kf7 {[%clk 0:00:15]} 28. Qh7+ {[%clk 0:00:45]}  Kxf6 {[%clk 0:00:15]} 29. Qxg6+ {[%clk 0:00:42]}  Ke7 {[%clk 0:00:15]} 1-0


[Site "https://www.chess.com"]

[Event "Titled Tuesday Blitz February 07 Early 2023"]
[White "Panesso Rivera, Henry"]
[Black "OKEKE, Isaac Chukwudalu"]
[WhiteFideId "4402707"]
[BlackFideId "8508526"]
[WhiteElo "2342"]
[BlackElo "2155"]
[Result "1-0"]
[Round "04"]
[TimeControl "180+2"]
[Date "2023.02.07"]
[WhiteClock "0:00:12"]
[BlackClock "0:00:02"]

1. Nf3 {[%clk 0:03:00]}  d5 {[%clk 0:02:59]} 2. e3 {[%clk 0:02:59]}  Nf6 {[%clk 0:02:54]} 3. c4 {[%clk 0:02:52]}  c5 {[%clk 0:02:46]} 4. cxd5 {[%clk 0:02:51]}  Qxd5 {[%clk 0:02:33]} 5. Nc3 {[%clk 0:02:49]}  Qd8 {[%clk 0:02:33]} 6. d4 {[%clk 0:02:48]}  e6 {[%clk 0:02:31]} 7. Bd3 {[%clk 0:02:42]}  Be7 {[%clk 0:02:27]} 8. O-O {[%clk 0:02:40]}  O-O {[%clk 0:02:26]} 9. Qe2 {[%clk 0:02:17]}  Nc6 {[%clk 0:02:20]} 10. Rd1 {[%clk 0:02:13]}  Qc7 {[%clk 0:01:29]} 11. a3 {[%clk 0:01:36]}  a6 {[%clk 0:01:10]} 12. dxc5 {[%clk 0:01:32]}  Bxc5 {[%clk 0:01:09]} 13. b4 {[%clk 0:01:31]}  Bd6 {[%clk 0:01:07]} 14. Bb2 {[%clk 0:01:31]}  e5 {[%clk 0:01:04]} 15. b5 {[%clk 0:01:09]}  Ne7 {[%clk 0:00:33]} 16. Rac1 {[%clk 0:01:08]}  Qb8 {[%clk 0:00:25]} 17. h3 {[%clk 0:00:48]}  Be6 {[%clk 0:00:20]} 18. Ng5 {[%clk 0:00:37]}  Bb3 {[%clk 0:00:20]} 19. Rd2 {[%clk 0:00:37]}  Rc8 {[%clk 0:00:16]} 20. bxa6 {[%clk 0:00:30]}  bxa6 {[%clk 0:00:15]} 21. Nxh7 {[%clk 0:00:30]}  Nxh7 {[%clk 0:00:14]} 22. Bxh7+ {[%clk 0:00:30]}  Kxh7 {[%clk 0:00:13]} 23. Qd3+ {[%clk 0:00:31]}  Kg8 {[%clk 0:00:13]} 24. Qxd6 {[%clk 0:00:30]}  Qxd6 {[%clk 0:00:12]} 25. Rxd6 {[%clk 0:00:31]}  a5 {[%clk 0:00:10]} 26. Ne4 {[%clk 0:00:20]}  f6 {[%clk 0:00:08]} 27. Rd7 {[%clk 0:00:16]}  Rxc1+ {[%clk 0:00:04]} 28. Bxc1 {[%clk 0:00:17]}  Rc8 {[%clk 0:00:04]} 29. Bd2 {[%clk 0:00:17]}  Nd5 {[%clk 0:00:04]} 30. Bxa5 {[%clk 0:00:16]}  Ra8 {[%clk 0:00:03]} 31. Bb4 {[%clk 0:00:16]}  Nxb4 {[%clk 0:00:04]} 32. axb4 {[%clk 0:00:17]}  Ra1+ {[%clk 0:00:04]} 33. Kh2 {[%clk 0:00:17]}  Ra2 {[%clk 0:00:05]} 34. Kg3 {[%clk 0:00:16]}  Bc2 {[%clk 0:00:05]} 35. Nd6 {[%clk 0:00:15]}  Rb2 {[%clk 0:00:05]} 36. Rb7 {[%clk 0:00:14]}  Bg6 {[%clk 0:00:04]} 37. e4 {[%clk 0:00:13]}  Kh7 {[%clk 0:00:04]} 38. f3 {[%clk 0:00:13]}  Rd2 {[%clk 0:00:03]} 39. Rb6 {[%clk 0:00:13]}  Rb2 {[%clk 0:00:02]} 40. b5 {[%clk 0:00:13]}  Rb3 {[%clk 0:00:02]} 41. Rb7 {[%clk 0:00:13]}  Bh5 {[%clk 0:00:03]} 42. b6 {[%clk 0:00:12]}  Kh6 {[%clk 0:00:03]} 43. Nf5+ {[%clk 0:00:11]}  Kh7 {[%clk 0:00:01]} 44. Rxg7+ {[%clk 0:00:12]}  Kh8 {[%clk 0:00:02]} 45. b7 {[%clk 0:00:12]} 1-0


[Site "https://www.chess.com"]